fUST/lending_fUST_20250302
["ID","MTS","AMOUNT","RATE_DAILY","PERIOD"]
[354961817,1740846659607,-617.75403216,0.00027945,2]
[354961818,1740846659617,-592.03,0.00027945,2]
[354961819,1740846659626,-500.0,0.00027945,2]
[354961820,1740846659636,-500.0,0.00027945,2]
[354961821,1740846659646,-500.0,0.00027945,2]
[354961822,1740846659656,-500.0,0.00027945,2]
[354961823,1740846659666,-500.0,0.00027945,2]
[354961824,1740846659676,-500.0,0.00027945,2]
[354961825,1740846659685,-500.0,0.00027945,2]
[354961826,1740846659695,-500.0,0.00027945,2]
[354961827,1740846659705,-556.52,0.00027945,2]
[354961828,1740846659714,-500.0,0.00027945,2]
[354961829,1740846659724,-1034.1,0.00027945,2]
[354961830,1740846659733,-590.98,0.00027945,2]
[354961831,1740846659743,-500.0,0.00027945,2]
[354961832,1740846659753,-500.0,0.00027945,2]
[354961833,1740846659763,-500.0,0.00027945,2]
[354961834,1740846659773,-712.89,0.00027945,2]
[354961835,1740846659783,-500.0,0.00027945,2]
[354961836,1740846659793,-500.0,0.00027945,2]
[354961837,1740846659803,-573.66,0.00027945,2]
[354961838,1740846659812,-500.0,0.00027945,2]
[354961839,1740846659822,-500.0,0.00027945,2]
[354961840,1740846659832,-1089.04,0.00027945,2]
[354961841,1740846659842,-500.0,0.00027945,2]
[354961842,1740846659852,-500.0,0.00027945,2]
[354961843,1740846659862,-1123.8,0.00027945,2]
[354961844,1740846659872,-500.0,0.00027945,2]
[354961845,1740846659882,-500.0,0.00027945,2]
[354961846,1740846659891,-500.0,0.00027945,2]
[354961847,1740846659901,-500.0,0.00027945,2]
[354961848,1740846659911,-500.0,0.00027945,2]
[354961849,1740846659920,-619.73,0.00027945,2]
[354961850,1740846659931,-500.0,0.00027945,2]
[354961851,1740846659940,-614.57,0.00027945,2]
[354961852,1740846659950,-233.18462087,0.00027945,2]
[354961853,1740846659960,-500.0,0.00027945,2]
[354961854,1740846659970,-833.6,0.00027945,2]
[354961855,1740846659979,-500.0,0.00027945,2]
[354961856,1740846659989,-500.0,0.00027945,2]
[354961857,1740846659999,-500.0,0.00027945,2]
[354961858,1740846660010,-500.0,0.00027945,2]
[354961859,1740846660021,-500.0,0.00027945,2]
[354961860,1740846660032,-574.42600429,0.00027945,2]
[354961861,1740846660042,-500.0,0.00027945,2]
[354961862,1740846660052,-1025.72,0.00027945,2]
[354961863,1740846660064,-500.0,0.00027945,2]
[354961864,1740846660074,-500.0,0.00027945,2]
[354961865,1740846660084,-500.0,0.00027945,2]
[354961866,1740846660094,-500.0,0.00027945,2]
[354961867,1740846660104,-500.0,0.00027945,2]
[354961868,1740846660114,-1233.37,0.00027945,2]
[354961869,1740846660124,-500.0,0.00027945,2]
[354961870,1740846660134,-500.0,0.00027945,2]
[354961871,1740846660143,-500.0,0.00027945,2]
[354961872,1740846660153,-706.29,0.00027945,2]
[354961873,1740846660163,-500.0,0.00027945,2]
[354961874,1740846660173,-500.0,0.00027945,2]
[354961875,1740846660291,-500.0,0.00027945,2]
[354961876,1740846660302,-586.22,0.00027945,2]
[354961877,1740846660313,-500.0,0.00027945,2]
[354961878,1740846660323,-502.58,0.00027945,2]
[354961879,1740846660333,-500.0,0.00027945,2]
[354961880,1740846660342,-886.17,0.00027945,2]
[354961881,1740846660351,-500.0,0.00027945,2]
[354961882,1740846660361,-697.28,0.00027945,2]
[354961883,1740846660370,-500.0,0.00027945,2]
[354961884,1740846660379,-500.0,0.00027945,2]
[354961885,1740846660389,-520.27766781,0.00027945,2]
[354961886,1740846660398,-500.0,0.00027945,2]
[354961887,1740846660408,-1318.09,0.00027945,2]
[354961888,1740846660418,-500.0,0.00027945,2]
[354961889,1740846660427,-1492.38,0.00027945,2]
[354961890,1740846660437,-500.0,0.00027945,2]
[354961891,1740846660447,-500.0,0.00027945,2]
[354961892,1740846660456,-500.0,0.00027945,2]
[354961893,1740846660466,-500.0,0.00027945,2]
[354961894,1740846660476,-978.04,0.00027945,2]
[354961895,1740846660487,-500.0,0.00027945,2]
[354961896,1740846660497,-520.44539865,0.00027945,2]
[354961897,1740846660507,-500.0,0.00027945,2]
[354961898,1740846660516,-500.0,0.00027945,2]
[354961899,1740846660526,-500.0,0.00027945,2]
[354961900,1740846660535,-500.0,0.00027945,2]
[354961901,1740846660544,-500.0,0.00027945,2]
[354961902,1740846660556,-500.0,0.00027945,2]
[354961903,1740846660566,-1773.76,0.00027945,2]
[354961904,1740846660575,-500.0,0.00027945,2]
[354961905,1740846660585,-500.0,0.00027945,2]
[354961906,1740846660594,-500.0,0.00027945,2]
[354961907,1740846660604,-741.16,0.00027945,2]
[354961908,1740846660613,-500.0,0.00027945,2]
[354961909,1740846660624,-500.0,0.00027945,2]
[354961910,1740846660634,-500.0,0.00027945,2]
[354961911,1740846660644,-500.0,0.00027945,2]
[354961912,1740846660653,-500.0,0.00027945,2]
[354961913,1740846660663,-500.0,0.00027945,2]
[354961914,1740846660672,-500.0,0.00027945,2]
[354961915,1740846660682,-500.0,0.00027945,2]
[354961916,1740846660691,-1842.14,0.00027945,2]
[354961917,1740846660701,-500.0,0.00027945,2]
[354961918,1740846660710,-503.43214631,0.00027945,2]
[354961919,1740846660720,-913.9,0.00027945,2]
[354961920,1740846660729,-500.0,0.00027945,2]
[354961921,1740846660739,-500.0,0.00027945,2]
[354961922,1740846660748,-500.0,0.00027945,2]
[354961923,1740846660758,-500.0,0.00027945,2]
[354961924,1740846660768,-619.14,0.00027945,2]
[354961925,1740846660778,-500.0,0.00027945,2]
[354961926,1740846660789,-500.0,0.00027945,2]
[354961927,1740846660800,-500.0,0.00027945,2]
[354961928,1740846660814,-500.0,0.00027945,2]
[354961929,1740846660824,-500.0,0.00027945,2]
[354961930,1740846660834,-500.0,0.00027945,2]
[354961931,1740846660843,-500.0,0.00027945,2]
[354961932,1740846660853,-500.0,0.00027945,2]
[354961933,1740846660864,-536.86769473,0.00027945,2]
[354961934,1740846660874,-500.0,0.00027945,2]
[354961935,1740846660883,-500.0,0.00027945,2]
[354961936,1740846660892,-500.0,0.00027945,2]
[354961937,1740846660902,-560.42,0.00027945,2]
[354961938,1740846660911,-500.0,0.00027945,2]
[354961939,1740846660920,-500.0,0.00027945,2]
[354961940,1740846660931,-1240.95,0.00027945,2]
[354961941,1740846660941,-500.0,0.00027945,2]
[354961942,1740846660951,-500.0,0.00027945,2]
[354961943,1740846660961,-500.0,0.00027945,2]
[354961944,1740846660971,-545.06,0.00027945,2]
[354961945,1740846660981,-500.0,0.00027945,2]
[354961946,1740846660990,-738.3,0.00027945,2]
[354961947,1740846660999,-1708.18,0.00027945,2]
[354961948,1740846661009,-500.0,0.00027945,2]
[354961949,1740846661018,-540.28,0.00027945,2]
[354961950,1740846661028,-500.0,0.00027945,2]
[354961951,1740846661038,-500.0,0.00027945,2]
[354961952,1740846661048,-1546.57,0.00027945,2]
[354961953,1740846661060,-777.53,0.00027945,2]
[354961954,1740846661071,-714.07,0.00027945,2]
[354961955,1740846661082,-986.59,0.00027945,2]
[354961956,1740846661092,-500.0,0.00027945,2]
[354961957,1740846661102,-500.0,0.00027945,2]
[354961958,1740846661112,-500.0,0.00027945,2]
[354961959,1740846661122,-500.0,0.00027945,2]
[354961960,1740846661132,-500.0,0.00027945,2]
[354961961,1740846661143,-730.1,0.00027945,2]
[354961962,1740846661153,-500.0,0.00027945,2]
[354961963,1740846661163,-500.0,0.00027945,2]
[354961964,1740846661174,-500.0,0.00027945,2]
[354961965,1740846661184,-500.0,0.00027945,2]
[354961966,1740846661195,-500.0,0.00027945,2]
[354961967,1740846661205,-500.0,0.00027945,2]
[354961968,1740846661216,-500.0,0.00027945,2]
[354961969,1740846661226,-580.99,0.00027945,2]
[354961970,1740846661237,-500.0,0.00027945,2]
[354961971,1740846661247,-500.0,0.00027945,2]
[354961972,1740846661258,-500.0,0.00027945,2]
[354961973,1740846661272,-1239.39,0.00027945,2]
[354961974,1740846661282,-500.0,0.00027945,2]
[354961975,1740846661293,-500.0,0.00027945,2]
[354961976,1740846661303,-623.09,0.00027945,2]
[354961977,1740846661314,-500.0,0.00027945,2]
[354961978,1740846661324,-500.0,0.00027945,2]
[354961979,1740846661334,-508.74774967,0.00027945,2]
[354961980,1740846661346,-500.0,0.00027945,2]
[354961981,1740846661356,-500.0,0.00027945,2]
[354961982,1740846661366,-500.0,0.00027945,2]
[354961983,1740846661377,-500.0,0.00027945,2]
[354961984,1740846661387,-500.0,0.00027945,2]
[354961985,1740846661397,-500.0,0.00027945,2]
[354961986,1740846661408,-1196.92,0.00027945,2]
[354961987,1740846661419,-500.0,0.00027945,2]
[354961988,1740846661428,-592.2,0.00027945,2]
[354961989,1740846661439,-500.0,0.00027945,2]
[354961990,1740846661449,-1830.43,0.00027945,2]
[354961991,1740846661460,-320.22280286,0.00027945,2]
[354961992,1740846661470,-1318.59,0.00027945,2]
[354961993,1740846661480,-500.0,0.00027945,2]
[354961994,1740846661491,-500.0,0.00027945,2]
[354961995,1740846661505,-500.0,0.00027945,2]
[354961996,1740846661516,-500.0,0.00027945,2]
[354961997,1740846661526,-842.23,0.00027945,2]
[354961998,1740846661536,-500.0,0.00027945,2]
[354961999,1740846661547,-500.0,0.00027945,2]
[354962000,1740846661557,-1807.0,0.00027945,2]
[354962001,1740846661568,-500.0,0.00027945,2]
[354962002,1740846661578,-500.0,0.00027945,2]
[354962003,1740846661589,-500.0,0.00027945,2]
[354962004,1740846661600,-500.0,0.00027945,2]
[354962005,1740846661611,-500.0,0.00027945,2]
[354962006,1740846661621,-1942.63,0.00027945,2]
[354962007,1740846661631,-1876.69,0.00027945,2]
[354962008,1740846661642,-500.0,0.00027945,2]
[354962009,1740846661654,-500.0,0.00027945,2]
[354962010,1740846661664,-1414.82,0.00027945,2]
[354962011,1740846661674,-500.0,0.00027945,2]
[354962012,1740846661685,-500.0,0.00027945,2]
[354962013,1740846661695,-500.0,0.00027945,2]
[354962014,1740846661706,-5651.0,0.00027945,2]
[354962015,1740846661716,-500.0,0.00027945,2]
[354962016,1740846661727,-500.0,0.00027945,2]
[354962017,1740846661738,-1729.16,0.00027945,2]
[354962018,1740846661748,-500.0,0.00027945,2]
[354962019,1740846661759,-533.06,0.00027945,2]
[354962020,1740846661769,-500.0,0.00027945,2]
[354962021,1740846661780,-500.0,0.00027945,2]
[354962022,1740846661791,-500.0,0.00027945,2]
[354962023,1740846661801,-500.0,0.00027945,2]
[354962024,1740846661813,-500.0,0.00027945,2]
[354962025,1740846661823,-500.0,0.00027945,2]
[354962026,1740846661834,-500.0,0.00027945,2]
[354962027,1740846661845,-659.72,0.00027945,2]
[354962028,1740846661855,-500.0,0.00027945,2]
[354962029,1740846661866,-500.0,0.00027945,2]
[354962030,1740846661876,-1617.61,0.00027945,2]
[354962031,1740846661887,-500.0,0.00027945,2]
[354962032,1740846661897,-500.0,0.00027945,2]
[354962033,1740846661908,-500.0,0.00027945,2]
[354962034,1740846661919,-500.0,0.00027945,2]
[354962035,1740846661930,-1443.77,0.00027945,2]
[354962036,1740846661941,-500.0,0.00027945,2]
[354962037,1740846661951,-510.43424536,0.00027945,2]
[354962038,1740846661962,-521.11,0.00027945,2]
[354962039,1740846661974,-1859.02,0.00027945,2]
[354962040,1740846661985,-595.51,0.00027945,2]
[354962041,1740846661995,-500.0,0.00027945,2]
[354962042,1740846662006,-1234.4,0.00027945,2]
[354962043,1740846662017,-500.0,0.00027945,2]
[354962044,1740846662029,-500.0,0.00027945,2]
[354962045,1740846662040,-775.4,0.00027945,2]
[354962046,1740846662051,-292.87633386,0.00027945,2]
[354962047,1740846662065,-500.0,0.00027945,2]
[354962048,1740846662076,-500.0,0.00027945,2]
[354962049,1740846662086,-1146.15,0.00027945,2]
[354962050,1740846662098,-500.0,0.00027945,2]
[354962051,1740846662108,-500.0,0.00027945,2]
[354962052,1740846662120,-819.3,0.00027945,2]
[354962053,1740846662132,-629.43,0.00027945,2]
[354962054,1740846662143,-500.0,0.00027945,2]
[354962055,1740846662153,-500.0,0.00027945,2]
[354962056,1740846662164,-190506.83,0.00027945,2]
[354962057,1740846662175,-500.0,0.00027945,2]
[354962058,1740846662186,-500.0,0.00027945,2]
[354962059,1740846662197,-500.0,0.00027945,2]
[354962060,1740846662208,-500.0,0.00027945,2]
[354962061,1740846662220,-500.0,0.00027945,2]
[354962062,1740846662240,-500.0,0.00027945,2]
[354962063,1740846662258,-500.0,0.00027945,2]
[354962064,1740846662276,-1553.01,0.00027945,2]
[354962065,1740846662291,-576.69,0.00027945,2]
[354962066,1740846662305,-500.0,0.00027945,2]
[354962067,1740846662320,-196.14217479,0.00027945,2]
[354962068,1740846662337,-500.0,0.00027945,2]
[354962069,1740846662354,-3549.85,0.00027945,2]
[354962070,1740846662371,-601.57,0.00027945,2]
[354962071,1740846662386,-500.0,0.00027945,2]
[354962072,1740846662400,-978.8,0.00027945,2]
[354962073,1740846662414,-500.0,0.00027945,2]
[354962074,1740846662431,-500.0,0.00027945,2]
[354962075,1740846662445,-1709.61,0.00027945,2]
[354962076,1740846662456,-3599.66,0.00027945,2]
[354962077,1740846662470,-661.94,0.00027945,2]
[354962078,1740846662485,-500.0,0.00027945,2]
[354962079,1740846662503,-469.46315389,0.00027945,2]
[354962080,1740846662519,-500.0,0.00027945,2]
[354962081,1740846662534,-2878.26,0.00027945,2]
[354962082,1740846662550,-266.54341547,0.00027945,2]
[354962083,1740846662565,-500.0,0.00027945,2]
[354962084,1740846662577,-500.0,0.00027945,2]
[354962085,1740846662589,-1297.56,0.00027945,2]
[354962086,1740846662606,-1341.29,0.00027945,2]
[354962087,1740846662622,-500.0,0.00027945,2]
[354962088,1740846662634,-500.0,0.00027945,2]
[354962089,1740846662647,-2011.31,0.00027945,2]
[354962090,1740846662663,-500.0,0.00027945,2]
[354962091,1740846662675,-653.46,0.00027945,2]
[354962092,1740846662688,-500.0,0.00027945,2]
[354962093,1740846662703,-500.0,0.00027945,2]
[354962094,1740846662717,-500.0,0.00027945,2]
[354962095,1740846662731,-500.0,0.00027945,2]
[354962096,1740846662745,-1174.02,0.00027945,2]
[354962097,1740846662758,-2155.85,0.00027945,2]
[354962098,1740846662771,-656.38,0.00027945,2]
[354962099,1740846662785,-5117.99,0.00027945,2]
[354962100,1740846662799,-500.0,0.00027945,2]
[354962101,1740846662815,-624.36,0.00027945,2]
[354962102,1740846662828,-531.31,0.00027945,2]
[354962103,1740846662842,-3268.9,0.00027945,2]
[354962104,1740846662855,-500.0,0.00027945,2]
[354962105,1740846662867,-958.88,0.00027945,2]
[354962106,1740846662881,-2256.83,0.00027945,2]
[354962107,1740846662894,-639.84732129,0.00027945,2]
[354962108,1740846662906,-500.0,0.00027945,2]
[354962109,1740846662922,-538.26,0.00027945,2]
[354962110,1740846662934,-410.346135,0.00027945,2]
[354962111,1740846662947,-1396.52,0.00027945,2]
[354962112,1740846662961,-909.91,0.00027945,2]
[354962113,1740846662974,-2395.96,0.00027945,2]
[354962114,1740846662987,-500.0,0.00027945,2]
[354962115,1740846662999,-1097.81,0.00027945,2]
[354962116,1740846663013,-507.39311991,0.00027945,2]
[354962117,1740846663027,-500.0,0.00027945,2]
[354962118,1740846663042,-500.0,0.00027945,2]
[354962119,1740846663056,-11186.38,0.00027945,2]
[354962120,1740846663071,-584.74,0.00027945,2]
[354962121,1740846663085,-2624.86,0.00027945,2]
[354962122,1740846663099,-500.0,0.00027945,2]
[354962123,1740846663113,-500.0,0.00027945,2]
[354962124,1740846663126,-1023.67,0.00027945,2]
[354962125,1740846663140,-500.0,0.00027945,2]
[354962126,1740846663154,-626.02,0.00027945,2]
[354962127,1740846663167,-820.37,0.00027945,2]
[354962128,1740846663180,-500.0,0.00027945,2]
[354962129,1740846663193,-500.0,0.00027945,2]
[354962130,1740846663207,-500.0,0.00027945,2]
[354962131,1740846663220,-925.72,0.00027945,2]
[354962132,1740846663233,-826.55,0.00027945,2]
[354962133,1740846663248,-960.39,0.00027945,2]
[354962134,1740846663264,-2670.7,0.00027945,2]
[354962135,1740846663280,-11059.39,0.00027945,2]
[354962136,1740846663295,-1359.17,0.00027945,2]
[354962137,1740846663309,-665.55,0.00027945,2]
[354962138,1740846663322,-500.0,0.00027945,2]
[354962139,1740846663336,-1264.19,0.00027945,2]
[354962140,1740846663350,-505.27103851,0.00027945,2]
[354962141,1740846663363,-1683.67,0.00027945,2]
[354962142,1740846663380,-16013.17,0.00027945,2]
[354962143,1740846663393,-1370.82,0.00027945,2]
[354962144,1740846663408,-500.0,0.00027945,2]
[354962145,1740846663421,-1859.32,0.00027945,2]
[354962146,1740846663435,-500.0,0.00027945,2]
[354962147,1740846663449,-500.0,0.00027945,2]
[354962148,1740846663462,-1696.6,0.00027945,2]
[354962149,1740846663476,-500.0,0.00027945,2]
[354962150,1740846663489,-500.0,0.00027945,2]
[354962151,1740846663502,-500.0,0.00027945,2]
[354962152,1740846663516,-500.0,0.00027945,2]
[354962153,1740846663530,-500.0,0.00027945,2]
[354962154,1740846663543,-1936.34,0.00027945,2]
[354962155,1740846663557,-500.0,0.00027945,2]
[354962156,1740846663572,-500.0,0.00027945,2]
[354962157,1740846663585,-524.73661576,0.00027945,2]
[354962158,1740846663599,-500.0,0.00027945,2]
[354962159,1740846663617,-500.0,0.00027945,2]
[354962160,1740846663636,-9445.09,0.00027945,2]
[354962161,1740846663653,-500.0,0.00027945,2]
[354962162,1740846663668,-500.0,0.00027945,2]
[354962163,1740846663682,-500.0,0.00027945,2]
[354962164,1740846663696,-674.66,0.00027945,2]
[354962165,1740846663710,-500.0,0.00027945,2]
[354962166,1740846663724,-500.0,0.00027945,2]
[354962167,1740846663739,-2908.12,0.00027945,2]
[354962168,1740846663753,-590.11,0.00027945,2]
[354962169,1740846663767,-500.0,0.00027945,2]
[354962170,1740846663781,-494.63397292,0.00027945,2]
[354962171,1740846663794,-1364.91,0.00027945,5]
[354962172,1740846663810,-500.0,0.00027945,2]
[354962173,1740846663824,-1941.35,0.00027945,2]
[354962174,1740846663837,-5965.27,0.00027945,2]
[354962175,1740846663850,-500.0,0.00027945,2]
[354962176,1740846663863,-500.0,0.00027945,2]
[354962177,1740846663876,-1234.31,0.00027945,2]
[354962178,1740846663889,-601.8,0.00027945,2]
[354962179,1740846663902,-508.07,0.00027945,2]
[354962180,1740846663915,-1706.5,0.00027945,2]
[354962181,1740846663928,-500.0,0.00027945,2]
[354962182,1740846663941,-965.42,0.00027945,2]
[354962183,1740846663954,-500.0,0.00027945,2]
[354962184,1740846663967,-500.0,0.00027945,2]
[354962185,1740846663981,-554.76,0.00027945,2]
[354962186,1740846663994,-500.0,0.00027945,2]
[354962187,1740846664007,-744.39,0.00027945,2]
[354962188,1740846664020,-303.67041697,0.00027945,2]
[354962189,1740846664033,-2640.16,0.00027945,2]
[354962190,1740846664046,-500.0,0.00027945,2]
[354962191,1740846664059,-500.0,0.00027945,2]
[354962192,1740846664074,-1604.67,0.00027945,2]
[354962193,1740846664087,-1632.73,0.00027945,2]
[354962194,1740846664101,-500.0,0.00027945,2]
[354962195,1740846664113,-500.0,0.00027945,2]
[354962196,1740846664127,-500.0,0.00027945,2]
[354962197,1740846664140,-500.0,0.00027945,2]
[354962198,1740846664153,-500.0,0.00027945,2]
[354962199,1740846664166,-2039.5,0.00027945,2]
[354962200,1740846664179,-500.0,0.00027945,2]
[354962201,1740846664192,-1755.93,0.00027945,2]
[354962202,1740846664205,-37902.13,0.00027945,2]
[354962203,1740846664219,-544.83,0.00027945,2]
[354962204,1740846664233,-500.0,0.00027945,2]
[354962205,1740846664245,-549.86,0.00027945,2]
[354962206,1740846664258,-2076.91,0.00027945,2]
[354962207,1740846664277,-500.0,0.00027945,2]
[354962208,1740846664291,-1115.62,0.00027945,2]
[354962209,1740846664305,-500.0,0.00027945,2]
[354962210,1740846664320,-500.0,0.00027945,2]
[354962211,1740846664335,-500.0,0.00027945,2]
[354962212,1740846664348,-675.14,0.00027945,2]
[354962213,1740846664361,-500.0,0.00027945,2]
[354962214,1740846664376,-1679.32,0.00027945,2]
[354962215,1740846664390,-620.02,0.00027945,2]
[354962216,1740846664403,-9907.16,0.00027945,2]
[354962217,1740846664417,-1506.15,0.00027945,2]
[354962218,1740846664431,-500.0,0.00027945,2]
[354962219,1740846664446,-500.0,0.00027945,2]
[354962220,1740846664459,-961.2,0.00027945,2]
[354962221,1740846664469,-3365.36,0.00027945,2]
[354962222,1740846664479,-500.0,0.00027945,2]
[354962223,1740846664489,-500.0,0.00027945,2]
[354962224,1740846664499,-500.0,0.00027945,2]
[354962225,1740846664510,-2548.76,0.00027945,2]
[354962226,1740846664519,-1341.27,0.00027945,2]
[354962227,1740846664529,-969.28,0.00027945,2]
[354962228,1740846664540,-500.0,0.00027945,2]
[354962229,1740846664550,-500.0,0.00027945,2]
[354962230,1740846664561,-7310.36,0.00027945,2]
[354962231,1740846664571,-671.34,0.00027945,2]
[354962232,1740846664581,-6312.85,0.00027945,2]
[354962233,1740846664591,-335.43268638,0.00027945,2]
[354962234,1740846664601,-1093.41,0.00027945,2]
[354962235,1740846664610,-500.0,0.00027945,2]
[354962236,1740846665028,-512.84479477,0.00027945,2]
[354962237,1740846665065,-500.0,0.00027945,2]
[354962238,1740846665085,-756.65,0.00027945,2]
[354962239,1740846665095,-500.0,0.00027945,2]
[354962240,1740846665105,-500.0,0.00027945,2]
[354962241,1740846665115,-500.0,0.00027945,2]
[354962242,1740846665125,-12457.78,0.00027945,2]
[354962243,1740846665134,-931.06,0.00027945,2]
[354962244,1740846665144,-2084.68,0.00027945,2]
[354962245,1740846665154,-4421.33,0.00027945,2]
[354962246,1740846665163,-950.58,0.00027945,2]
[354962247,1740846665173,-1000.0,0.00027945,2]
[354962248,1740846665182,-965.82,0.00027945,2]
[354962249,1740846665192,-500.0,0.00027945,2]
[354962250,1740846665202,-500.0,0.00027945,2]
[354962251,1740846665212,-500.0,0.00027945,2]
[354962252,1740846665222,-500.0,0.00027945,2]
[354962253,1740846665231,-1737.44,0.00027945,2]
[354962254,1740846665241,-500.0,0.00027945,2]
[354962255,1740846665251,-905.67,0.00027945,2]
[354962256,1740846665260,-500.0,0.00027945,2]
[354962257,1740846665275,-500.0,0.00027945,2]
[354962258,1740846665284,-721.23,0.00027945,2]
[354962259,1740846665294,-3500.42,0.00027945,2]
[354962260,1740846665303,-500.0,0.00027945,2]
[354962261,1740846665313,-500.0,0.00027945,2]
[354962262,1740846665323,-500.0,0.00027945,2]
[354962263,1740846665333,-598.98129831,0.00027945,2]
[354962264,1740846665345,-692.49,0.00027945,2]
[354962265,1740846665354,-500.0,0.00027945,2]
[354962266,1740846665364,-500.0,0.00027945,2]
[354962267,1740846665374,-500.0,0.00027945,2]
[354962268,1740846665383,-508.51,0.00027945,2]
[354962269,1740846665393,-500.0,0.00027973,5]
[354962270,1740846665403,-800.0,0.00028,30]
[354962271,1740846665413,-800.0,0.00028,30]
[354962272,1740846665422,-800.0,0.00028,30]
[354962273,1740846665432,-800.0,0.00028,30]
[354962274,1740846665442,-800.0,0.00028,30]
[354962275,1740846665452,-800.0,0.00028,30]
[354962276,1740846665462,-800.0,0.00028,30]
[354962277,1740846665472,-800.0,0.00028,30]
[354962278,1740846665481,-800.0,0.00028,30]
[354962279,1740846665491,-800.0,0.00028,30]
[354962280,1740846665500,-800.0,0.00028,30]
[354962281,1740846665510,-800.0,0.00028,30]
[354962282,1740846665519,-500.0,0.00028,30]
[354962283,1740846665529,-800.0,0.00028,30]
[354962284,1740846665539,-500.0,0.00028,30]
[354962285,1740846665548,-800.0,0.00028,30]
[354962286,1740846665557,-500.0,0.00028,30]
[354962287,1740846665570,-800.0,0.00028,30]
[354962288,1740846665580,-800.0,0.00028,30]
[354962289,1740846665590,-500.0,0.00028,30]
[354962290,1740846665600,-800.0,0.00028,30]
[354962291,1740846665610,-500.0,0.00028,30]
[354962292,1740846665620,-800.0,0.00028,30]
[354962293,1740846665630,-500.0,0.00028,30]
[354962294,1740846665640,-500.0,0.00028,30]
[354962295,1740846665650,-500.0,0.00028,30]
[354962296,1740846665660,-500.0,0.00028,30]
[354962297,1740846665671,-800.0,0.00028,30]
[354962298,1740846665681,-500.0,0.00028,30]
[354962299,1740846665691,-800.0,0.00028,30]
[354962300,1740846665701,-800.0,0.00028,30]
[354962301,1740846665711,-500.0,0.00028,30]
[354962302,1740846665721,-500.0,0.00028,30]
[354962303,1740846665731,-500.0,0.00028,30]
[354962304,1740846665740,-500.0,0.00028,30]
[354962305,1740846665751,-800.0,0.00028,30]
[354962306,1740846665760,-500.0,0.00028,30]
[354962307,1740846665770,-800.0,0.00028,30]
[354962308,1740846665780,-500.0,0.00028,30]
[354962309,1740846665791,-800.0,0.00028,30]
[354962310,1740846665801,-500.0,0.00028,30]
[354962311,1740846665813,-800.0,0.00028,30]
[354962312,1740846665823,-500.0,0.00028,30]
[354962313,1740846665833,-800.0,0.00028,30]
[354962314,1740846665843,-500.0,0.00028,30]
[354962315,1740846665853,-800.0,0.00028,30]
[354962316,1740846665863,-500.0,0.00028,30]